[Event "December 19 Late 2023"]
[Site "https://www.chess.com"]
[Date "2023.12.19"]
[Round "3"]
[White "Novikova, Margarita"]
[Black "Hoffmann, Asa"]
[Result "1-0"]
[Board "168"]
[TimeControl "180+1"]
[WhiteFideId "14109689"]
[BlackFideId "2001470"]
[WhiteElo "2090"]
[BlackElo "2117"]
[WhiteTeam "GER"]
[BlackTeam "USA"]
[WhiteClock "0:00:08"]
[BlackClock "0:00:00"]

1. e4 {[%clk 0:02:59]}  d6 {[%clk 0:02:58]} 2. d4 {[%clk 0:02:59]}  Nf6 {[%clk 0:02:58]} 3. Nc3 {[%clk 0:03:00]}  c6 {[%clk 0:02:57]} 4. h3 {[%clk 0:03:00]}  Nbd7 {[%clk 0:02:56]} 5. Nf3 {[%clk 0:03:00]}  e5 {[%clk 0:02:55]} 6. Be2 {[%clk 0:03:00]}  Be7 {[%clk 0:02:55]} 7. O-O {[%clk 0:03:00]}  b5 {[%clk 0:02:55]} 8. a3 {[%clk 0:03:00]}  a6 {[%clk 0:02:40]} 9. dxe5 {[%clk 0:02:56]}  dxe5 {[%clk 0:02:38]} 10. Be3 {[%clk 0:02:55]}  Bb7 {[%clk 0:02:37]} 11. Qd2 {[%clk 0:02:47]}  Qc7 {[%clk 0:02:36]} 12. Rad1 {[%clk 0:02:46]}  O-O {[%clk 0:02:35]} 13. Bg5 {[%clk 0:02:25]}  Rfd8 {[%clk 0:02:31]} 14. Qe3 {[%clk 0:02:25]}  Bc5 {[%clk 0:02:30]} 15. Qc1 {[%clk 0:02:24]}  h6 {[%clk 0:02:25]} 16. Bh4 {[%clk 0:02:24]}  Be7 {[%clk 0:02:11]} 17. Rd2 {[%clk 0:02:17]}  Nf8 {[%clk 0:02:10]} 18. Rfd1 {[%clk 0:02:15]}  Ne6 {[%clk 0:02:09]} 19. Bg3 {[%clk 0:02:14]}  Nf4 {[%clk 0:02:09]} 20. Rxd8+ {[%clk 0:02:03]}  Rxd8 {[%clk 0:02:08]} 21. Rxd8+ {[%clk 0:01:53]}  Bxd8 {[%clk 0:02:07]} 22. Nxe5 {[%clk 0:01:42]}  Nxe2+ {[%clk 0:01:58]} 23. Nxe2 {[%clk 0:01:41]}  Nxe4 {[%clk 0:01:55]} 24. Bf4 {[%clk 0:01:28]}  Bg5 {[%clk 0:01:44]} 25. Bxg5 {[%clk 0:01:20]}  Nxg5 {[%clk 0:01:41]} 26. Qe3 {[%clk 0:01:17]}  c5 {[%clk 0:01:35]} 27. f4 {[%clk 0:01:14]}  Ne6 {[%clk 0:01:33]} 28. Ng3 {[%clk 0:01:05]}  Qd6 {[%clk 0:01:26]} 29. Kh2 {[%clk 0:00:44]}  Qd4 {[%clk 0:01:21]} 30. Qxd4 {[%clk 0:00:38]}  Nxd4 {[%clk 0:01:19]} 31. c3 {[%clk 0:00:37]}  Ne6 {[%clk 0:01:07]} 32. f5 {[%clk 0:00:33]}  Nf4 {[%clk 0:01:04]} 33. Nd7 {[%clk 0:00:23]}  c4 {[%clk 0:01:00]} 34. Nc5 {[%clk 0:00:22]}  Bc8 {[%clk 0:00:44]} 35. f6 {[%clk 0:00:19]}  g6 {[%clk 0:00:38]} 36. Nge4 {[%clk 0:00:19]}  Kf8 {[%clk 0:00:30]} 37. Nd6 {[%clk 0:00:19]}  Be6 {[%clk 0:00:25]} 38. Nxa6 {[%clk 0:00:16]}  Nd3 {[%clk 0:00:22]} 39. Nxb5 {[%clk 0:00:16]}  Nxb2 {[%clk 0:00:22]} 40. Nc5 {[%clk 0:00:15]}  Nd1 {[%clk 0:00:20]} 41. a4 {[%clk 0:00:13]}  Bd5 {[%clk 0:00:19]} 42. a5 {[%clk 0:00:12]}  Ke8 {[%clk 0:00:19]} 43. a6 {[%clk 0:00:12]}  Kd8 {[%clk 0:00:19]} 44. a7 {[%clk 0:00:10]}  Kc8 {[%clk 0:00:19]} 45. Nd6+ {[%clk 0:00:06]}  Kc7 {[%clk 0:00:17]} 46. Nb5+ {[%clk 0:00:04]}  Kb6 {[%clk 0:00:15]} 47. Nd6 {[%clk 0:00:01]}  Kxc5 {[%clk 0:00:14]} 48. Nxf7 {[%clk 0:00:01]}  Bxf7 {[%clk 0:00:13]} 49. a8=Q {[%clk 0:00:01]}  Bd5 {[%clk 0:00:13]} 50. Qc8+ {[%clk 0:00:02]}  Kd6 {[%clk 0:00:13]} 51. Qd8+ {[%clk 0:00:02]}  Ke6 {[%clk 0:00:12]} 52. Qe7+ {[%clk 0:00:03]}  Kf5 {[%clk 0:00:12]} 53. f7 {[%clk 0:00:04]}  Bxf7 {[%clk 0:00:12]} 54. Qxf7+ {[%clk 0:00:05]}  Ke4 {[%clk 0:00:12]} 55. Qxc4+ {[%clk 0:00:05]}  Ke3 {[%clk 0:00:11]} 56. Qe6+ {[%clk 0:00:05]}  Kd3 {[%clk 0:00:11]} 57. c4 {[%clk 0:00:06]}  Ne3 {[%clk 0:00:10]} 58. c5 {[%clk 0:00:07]}  Nf5 {[%clk 0:00:09]} 59. c6 {[%clk 0:00:07]}  Nd4 {[%clk 0:00:09]} 60. Qd5 {[%clk 0:00:07]}  Ke3 {[%clk 0:00:08]} 61. Qxd4+ {[%clk 0:00:07]}  Kxd4 {[%clk 0:00:00]} 62. c7 {[%clk 0:00:08]} 1-0

[Event "December 19 Late 2023"]
[Site "https://www.chess.com"]
[Date "2023.12.19"]
[Round "3"]
[White "Ivanov, Aleksandr"]
[Black "Chlpik, Martin"]
[Result "1-0"]
[Board "169"]
[TimeControl "180+1"]
[WhiteFideId "2092980"]
[BlackFideId "14923351"]
[WhiteElo "2093"]
[BlackElo "2109"]
[WhiteTeam "USA"]
[BlackTeam "SVK"]
[WhiteClock "0:00:01"]
[BlackClock "0:01:26"]

1. d4 {[%clk 0:03:00]}  Nf6 {[%clk 0:02:58]} 2. c4 {[%clk 0:03:00]}  c5 {[%clk 0:02:55]} 3. d5 {[%clk 0:03:00]}  e6 {[%clk 0:02:55]} 4. Nc3 {[%clk 0:02:59]}  exd5 {[%clk 0:02:55]} 5. cxd5 {[%clk 0:02:59]}  Bd6 {[%clk 0:02:54]} 6. e4 {[%clk 0:02:57]}  O-O {[%clk 0:02:54]} 7. Nf3 {[%clk 0:02:49]}  Re8 {[%clk 0:02:54]} 8. Bd3 {[%clk 0:02:47]}  c4 {[%clk 0:02:53]} 9. Bc2 {[%clk 0:02:39]}  b5 {[%clk 0:02:53]} 10. a3 {[%clk 0:02:17]}  Na6 {[%clk 0:02:49]} 11. O-O {[%clk 0:02:14]}  Nc5 {[%clk 0:02:49]} 12. Re1 {[%clk 0:02:06]}  Rb8 {[%clk 0:02:47]} 13. e5 {[%clk 0:01:58]}  Bxe5 {[%clk 0:02:40]} 14. Nxe5 {[%clk 0:01:49]}  Qc7 {[%clk 0:02:39]} 15. d6 {[%clk 0:01:43]}  Qb6 {[%clk 0:02:38]} 16. Bf4 {[%clk 0:01:16]}  Ne6 {[%clk 0:02:37]} 17. Be3 {[%clk 0:01:14]}  Qa5 {[%clk 0:02:34]} 18. Ng4 {[%clk 0:00:43]}  Nxg4 {[%clk 0:02:29]} 19. Qxg4 {[%clk 0:00:42]}  b4 {[%clk 0:02:25]} 20. Ne4 {[%clk 0:00:36]}  f5 {[%clk 0:02:24]} 21. Nf6+ {[%clk 0:00:27]}  Kf7 {[%clk 0:02:18]} 22. Bxf5 {[%clk 0:00:20]}  Kxf6 {[%clk 0:02:09]} 23. Qh4+ {[%clk 0:00:04]}  Kf7 {[%clk 0:01:56]} 24. Qh5+ {[%clk 0:00:03]}  Kf8 {[%clk 0:01:51]} 25. Qxh7 {[%clk 0:00:01]}  Bb7 {[%clk 0:01:26]} 26. Bg6 {[%clk 0:00:01]} 1-0

[Event "December 19 Late 2023"]
[Site "https://www.chess.com"]
[Date "2023.12.19"]
[Round "3"]
[White "Gardezi, Arsal"]
[Black "Botez, Alexandra"]
[Result "1-0"]
[Board "170"]
[TimeControl "180+1"]
[WhiteFideId "30949521"]
[BlackFideId "2603365"]
[WhiteElo "1906"]
[BlackElo "2040"]
[WhiteTeam "USA"]
[BlackTeam "CAN"]
[WhiteClock "0:01:07"]
[BlackClock "0:01:14"]

1. Nf3 {[%clk 0:02:49]}  d5 {[%clk 0:02:57]} 2. d4 {[%clk 0:02:46]}  Nf6 {[%clk 0:02:55]} 3. Bf4 {[%clk 0:02:43]}  Bf5 {[%clk 0:02:54]} 4. Nbd2 {[%clk 0:02:43]}  c6 {[%clk 0:02:54]} 5. e3 {[%clk 0:02:43]}  e6 {[%clk 0:02:54]} 6. Ne5 {[%clk 0:02:35]}  Nbd7 {[%clk 0:02:46]} 7. Bd3 {[%clk 0:02:32]}  Bxd3 {[%clk 0:02:42]} 8. Nxd3 {[%clk 0:02:33]}  c5 {[%clk 0:02:40]} 9. c3 {[%clk 0:02:33]}  c4 {[%clk 0:02:40]} 10. Ne5 {[%clk 0:02:33]}  Nxe5 {[%clk 0:02:40]} 11. Bxe5 {[%clk 0:02:34]}  Bd6 {[%clk 0:02:37]} 12. Bg3 {[%clk 0:02:32]}  Qc7 {[%clk 0:02:35]} 13. Qf3 {[%clk 0:02:31]}  b5 {[%clk 0:02:34]} 14. e4 {[%clk 0:02:16]}  dxe4 {[%clk 0:02:34]} 15. Nxe4 {[%clk 0:02:17]}  Nxe4 {[%clk 0:02:31]} 16. Qxe4 {[%clk 0:02:18]}  O-O {[%clk 0:02:30]} 17. O-O {[%clk 0:02:13]}  Bxg3 {[%clk 0:02:23]} 18. hxg3 {[%clk 0:02:13]}  a5 {[%clk 0:02:23]} 19. a4 {[%clk 0:02:03]}  b4 {[%clk 0:02:23]} 20. Rac1 {[%clk 0:02:03]}  Rfb8 {[%clk 0:02:21]} 21. d5 {[%clk 0:01:59]}  exd5 {[%clk 0:02:20]} 22. Qxd5 {[%clk 0:01:59]}  Ra6 {[%clk 0:02:18]} 23. Rfe1 {[%clk 0:01:52]}  h6 {[%clk 0:02:17]} 24. cxb4 {[%clk 0:01:51]}  Rxb4 {[%clk 0:02:11]} 25. Re8+ {[%clk 0:01:46]}  Kh7 {[%clk 0:02:10]} 26. Qe4+ {[%clk 0:01:43]}  Rg6 {[%clk 0:02:04]} 27. Qa8 {[%clk 0:01:36]}  Rf6 {[%clk 0:01:54]} 28. Rh8+ {[%clk 0:01:30]}  Kg6 {[%clk 0:01:47]} 29. Qe4+ {[%clk 0:01:31]}  Rf5 {[%clk 0:01:47]} 30. g4 {[%clk 0:01:28]}  Qf4 {[%clk 0:01:37]} 31. gxf5+ {[%clk 0:01:24]}  Qxf5 {[%clk 0:01:37]} 32. Qxf5+ {[%clk 0:01:24]}  Kxf5 {[%clk 0:01:38]} 33. Rc8 {[%clk 0:01:24]}  Rxa4 {[%clk 0:01:36]} 34. R8xc4 {[%clk 0:01:23]}  Ra2 {[%clk 0:01:36]} 35. R1c2 {[%clk 0:01:22]}  Kg6 {[%clk 0:01:35]} 36. Rc5 {[%clk 0:01:22]}  f5 {[%clk 0:01:35]} 37. g3 {[%clk 0:01:21]}  Kg5 {[%clk 0:01:35]} 38. Kg2 {[%clk 0:01:20]}  g6 {[%clk 0:01:36]} 39. Rb5 {[%clk 0:01:18]}  Kh5 {[%clk 0:01:34]} 40. Rcc5 {[%clk 0:01:16]}  Kg5 {[%clk 0:01:32]} 41. b3 {[%clk 0:01:15]}  Ra3 {[%clk 0:01:32]} 42. Rc6 {[%clk 0:01:12]}  a4 {[%clk 0:01:27]} 43. bxa4 {[%clk 0:01:08]}  Rxa4 {[%clk 0:01:25]} 44. Rbb6 {[%clk 0:01:08]}  f4 {[%clk 0:01:22]} 45. Rxg6+ {[%clk 0:01:07]}  Kf5 {[%clk 0:01:23]} 46. Rgf6+ {[%clk 0:01:08]}  Ke5 {[%clk 0:01:20]} 47. Rxf4 {[%clk 0:01:08]}  Ra1 {[%clk 0:01:19]} 48. Rxh6 {[%clk 0:01:08]}  Ra7 {[%clk 0:01:18]} 49. Rh5+ {[%clk 0:01:08]}  Ke6 {[%clk 0:01:14]} 50. Re4+ {[%clk 0:01:07]} 1-0

[Event "December 19 Late 2023"]
[Site "https://www.chess.com"]
[Date "2023.12.19"]
[Round "3"]
[White "Oliveira, Tiago Batista"]
[Black "Ardila, Oscar Humberto"]
[Result "0-1"]
[Board "171"]
[TimeControl "180+1"]
[WhiteFideId "2108291"]
[BlackFideId "4404742"]
[WhiteElo "1962"]
[BlackElo "1915"]
[WhiteTeam "BRA"]
[BlackTeam "COL"]
[WhiteClock "0:00:00"]
[BlackClock "0:00:13"]

1. d4 {[%clk 0:02:59]}  Nf6 {[%clk 0:02:59]} 2. c4 {[%clk 0:02:59]}  e6 {[%clk 0:02:59]} 3. Nf3 {[%clk 0:02:58]}  Bb4+ {[%clk 0:02:59]} 4. Bd2 {[%clk 0:02:58]}  Qe7 {[%clk 0:02:58]} 5. g3 {[%clk 0:02:58]}  Ne4 {[%clk 0:02:57]} 6. Bg2 {[%clk 0:02:57]}  Nxd2 {[%clk 0:02:56]} 7. Nfxd2 {[%clk 0:02:56]}  c6 {[%clk 0:02:46]} 8. O-O {[%clk 0:02:56]}  d5 {[%clk 0:02:46]} 9. e4 {[%clk 0:02:55]}  dxe4 {[%clk 0:02:43]} 10. Nxe4 {[%clk 0:02:55]}  O-O {[%clk 0:02:42]} 11. Nbc3 {[%clk 0:02:38]}  Nd7 {[%clk 0:02:38]} 12. Qc2 {[%clk 0:02:16]}  Nf6 {[%clk 0:02:37]} 13. c5 {[%clk 0:02:14]}  Nd5 {[%clk 0:02:36]} 14. Nd6 {[%clk 0:01:57]}  Rb8 {[%clk 0:02:27]} 15. Rfe1 {[%clk 0:01:43]}  Qf6 {[%clk 0:02:25]} 16. Rad1 {[%clk 0:01:38]}  Bd7 {[%clk 0:02:17]} 17. Be4 {[%clk 0:01:20]}  g6 {[%clk 0:02:13]} 18. h4 {[%clk 0:01:19]}  h5 {[%clk 0:02:08]} 19. Bd3 {[%clk 0:01:06]}  Kg7 {[%clk 0:01:58]} 20. Re5 {[%clk 0:01:05]}  Bxc3 {[%clk 0:01:43]} 21. bxc3 {[%clk 0:01:05]}  b6 {[%clk 0:01:41]} 22. Rg5 {[%clk 0:00:42]}  Be8 {[%clk 0:01:33]} 23. Qe2 {[%clk 0:00:19]}  Nxc3 {[%clk 0:01:19]} 24. Qxh5 {[%clk 0:00:19]}  Rh8 {[%clk 0:01:13]} 25. Qg4 {[%clk 0:00:12]}  Nxd1 {[%clk 0:01:07]} 26. Qxd1 {[%clk 0:00:12]}  bxc5 {[%clk 0:00:56]} 27. dxc5 {[%clk 0:00:11]}  Rb2 {[%clk 0:00:55]} 28. Bc2 {[%clk 0:00:07]}  Qc3 {[%clk 0:00:44]} 29. Nxe8+ {[%clk 0:00:02]}  Rxe8 {[%clk 0:00:41]} 30. Bxg6 {[%clk 0:00:02]}  fxg6 {[%clk 0:00:24]} 31. Qd7+ {[%clk 0:00:02]}  Kf8 {[%clk 0:00:21]} 32. Rxg6 {[%clk 0:00:02]}  Qe1+ {[%clk 0:00:18]} 33. Kh2 {[%clk 0:00:02]}  Qxf2+ {[%clk 0:00:18]} 34. Kh3 {[%clk 0:00:02]}  Qf5+ {[%clk 0:00:16]} 35. Rg4 {[%clk 0:00:02]}  Rb4 {[%clk 0:00:14]} 36. Qd6+ {[%clk 0:00:02]}  Re7 {[%clk 0:00:14]} 37. Qd8+ {[%clk 0:00:02]}  Kf7 {[%clk 0:00:14]} 38. Qd2 {[%clk 0:00:00]}  Qxg4+ {[%clk 0:00:13]} 0-1

[Event "December 19 Late 2023"]
[Site "https://www.chess.com"]
[Date "2023.12.19"]
[Round "3"]
[White "Ghosh, Chanchal Kumer"]
[Black "Fitol, Szymon"]
[Result "0-1"]
[Board "173"]
[TimeControl "180+1"]
[WhiteFideId "10201858"]
[BlackFideId "41857038"]
[WhiteElo "2067"]
[BlackElo "2335"]
[WhiteTeam "BAN"]
[BlackTeam "POL"]
[WhiteClock "0:00:00"]
[BlackClock "0:00:33"]

1. e4 {[%clk 0:02:56]}  d6 {[%clk 0:02:59]} 2. Nf3 {[%clk 0:02:56]}  g6 {[%clk 0:02:59]} 3. d4 {[%clk 0:02:56]}  Bg7 {[%clk 0:03:00]} 4. c4 {[%clk 0:02:55]}  c5 {[%clk 0:03:00]} 5. dxc5 {[%clk 0:02:55]}  dxc5 {[%clk 0:02:59]} 6. Qxd8+ {[%clk 0:02:55]}  Kxd8 {[%clk 0:03:00]} 7. Nc3 {[%clk 0:02:48]}  Nc6 {[%clk 0:02:54]} 8. Be3 {[%clk 0:02:45]}  Nd4 {[%clk 0:02:53]} 9. Bxd4 {[%clk 0:02:42]}  cxd4 {[%clk 0:02:53]} 10. Nb5 {[%clk 0:02:41]}  e5 {[%clk 0:02:52]} 11. c5 {[%clk 0:02:17]}  Ke7 {[%clk 0:02:48]} 12. Nd6 {[%clk 0:02:13]}  b6 {[%clk 0:02:36]} 13. Bc4 {[%clk 0:02:09]}  Nh6 {[%clk 0:02:32]} 14. Bd5 {[%clk 0:02:05]}  Rb8 {[%clk 0:02:27]} 15. b4 {[%clk 0:01:40]}  Be6 {[%clk 0:02:15]} 16. Nc4 {[%clk 0:01:30]}  bxc5 {[%clk 0:02:01]} 17. bxc5 {[%clk 0:01:26]}  Rhc8 {[%clk 0:02:02]} 18. c6 {[%clk 0:01:24]}  Rb5 {[%clk 0:01:44]} 19. Ncxe5 {[%clk 0:01:07]}  Bxd5 {[%clk 0:01:42]} 20. exd5 {[%clk 0:01:04]}  Rxd5 {[%clk 0:01:43]} 21. Nd3 {[%clk 0:00:40]}  Rxc6 {[%clk 0:01:38]} 22. Nb4 {[%clk 0:00:38]}  Re6+ {[%clk 0:01:38]} 23. Kd2 {[%clk 0:00:34]}  Rd7 {[%clk 0:01:36]} 24. Rae1 {[%clk 0:00:27]}  Nf5 {[%clk 0:01:36]} 25. Kd3 {[%clk 0:00:20]}  h5 {[%clk 0:01:17]} 26. Ng5 {[%clk 0:00:18]}  Rxe1 {[%clk 0:01:13]} 27. Rxe1+ {[%clk 0:00:19]}  Kd8 {[%clk 0:01:06]} 28. Nc6+ {[%clk 0:00:18]}  Kc8 {[%clk 0:01:00]} 29. Ne5 {[%clk 0:00:14]}  Bxe5 {[%clk 0:00:53]} 30. Rxe5 {[%clk 0:00:15]}  Rb7 {[%clk 0:00:51]} 31. Rc5+ {[%clk 0:00:13]}  Kd7 {[%clk 0:00:50]} 32. Nxf7 {[%clk 0:00:12]}  Rb2 {[%clk 0:00:48]} 33. Ra5 {[%clk 0:00:09]}  Rxf2 {[%clk 0:00:46]} 34. Rxa7+ {[%clk 0:00:09]}  Kc6 {[%clk 0:00:42]} 35. Ne5+ {[%clk 0:00:09]}  Kb6 {[%clk 0:00:41]} 36. Ra4 {[%clk 0:00:07]}  Rxg2 {[%clk 0:00:39]} 37. Rb4+ {[%clk 0:00:07]}  Kc5 {[%clk 0:00:37]} 38. a3 {[%clk 0:00:06]}  Rxh2 {[%clk 0:00:36]} 39. Nxg6 {[%clk 0:00:05]}  Rh3+ {[%clk 0:00:34]} 40. Ke4 {[%clk 0:00:05]}  Nd6+ {[%clk 0:00:35]} 41. Kf4 {[%clk 0:00:04]}  Rxa3 {[%clk 0:00:34]} 42. Rb8 {[%clk 0:00:00]}  d3 {[%clk 0:00:33]} 0-1

[Event "December 19 Late 2023"]
[Site "https://www.chess.com"]
[Date "2023.12.19"]
[Round "3"]
[White "Joel Paul Ganta"]
[Black "Levine, David"]
[Result "0-1"]
[Board "174"]
[TimeControl "180+1"]
[WhiteFideId "35066145"]
[BlackFideId "2011611"]
[WhiteElo "1891"]
[BlackElo "2047"]
[WhiteTeam "IND"]
[BlackTeam "USA"]
[WhiteClock "0:00:00"]
[BlackClock "0:00:45"]

1. e4 {[%clk 0:02:42]}  e5 {[%clk 0:02:59]} 2. Nf3 {[%clk 0:02:41]}  Nc6 {[%clk 0:02:59]} 3. Bb5 {[%clk 0:02:34]}  a6 {[%clk 0:02:59]} 4. Ba4 {[%clk 0:02:32]}  Nf6 {[%clk 0:02:58]} 5. O-O {[%clk 0:02:31]}  Be7 {[%clk 0:02:58]} 6. Re1 {[%clk 0:02:27]}  b5 {[%clk 0:02:58]} 7. Bb3 {[%clk 0:02:28]}  d6 {[%clk 0:02:58]} 8. h3 {[%clk 0:02:27]}  O-O {[%clk 0:02:53]} 9. c3 {[%clk 0:02:27]}  Bb7 {[%clk 0:02:52]} 10. d4 {[%clk 0:02:27]}  Re8 {[%clk 0:02:50]} 11. Be3 {[%clk 0:02:27]}  Bf8 {[%clk 0:02:48]} 12. dxe5 {[%clk 0:02:19]}  Nxe5 {[%clk 0:02:45]} 13. Nxe5 {[%clk 0:02:18]}  dxe5 {[%clk 0:02:44]} 14. f3 {[%clk 0:02:16]}  c5 {[%clk 0:02:33]} 15. Nd2 {[%clk 0:01:43]}  c4 {[%clk 0:02:32]} 16. Bc2 {[%clk 0:01:43]}  Qc7 {[%clk 0:02:28]} 17. Nf1 {[%clk 0:01:30]}  Bc5 {[%clk 0:02:28]} 18. Qe2 {[%clk 0:01:28]}  Rad8 {[%clk 0:02:24]} 19. Rad1 {[%clk 0:01:25]}  h6 {[%clk 0:02:16]} 20. Qf2 {[%clk 0:01:18]}  Nd7 {[%clk 0:02:12]} 21. Rxd7 {[%clk 0:01:07]}  Rxd7 {[%clk 0:01:42]} 22. Bxc5 {[%clk 0:01:04]}  Qc6 {[%clk 0:01:29]} 23. Ng3 {[%clk 0:00:59]}  a5 {[%clk 0:01:28]} 24. Be3 {[%clk 0:00:49]}  b4 {[%clk 0:01:23]} 25. Nf5 {[%clk 0:00:47]}  Re6 {[%clk 0:01:21]} 26. Qe2 {[%clk 0:00:38]}  Ba6 {[%clk 0:01:15]} 27. Rd1 {[%clk 0:00:28]}  h5 {[%clk 0:01:13]} 28. Rxd7 {[%clk 0:00:22]}  Qxd7 {[%clk 0:01:13]} 29. Qd1 {[%clk 0:00:22]}  Qxd1+ {[%clk 0:01:13]} 30. Bxd1 {[%clk 0:00:23]}  g6 {[%clk 0:01:12]} 31. Ng3 {[%clk 0:00:19]}  Rd6 {[%clk 0:01:06]} 32. Be2 {[%clk 0:00:18]}  bxc3 {[%clk 0:00:57]} 33. bxc3 {[%clk 0:00:19]}  Rd8 {[%clk 0:00:55]} 34. Kf2 {[%clk 0:00:20]}  Rb8 {[%clk 0:00:54]} 35. Bc5 {[%clk 0:00:12]}  Rb2 {[%clk 0:00:52]} 36. Bd6 {[%clk 0:00:12]}  f6 {[%clk 0:00:51]} 37. Nf1 {[%clk 0:00:11]}  Rxa2 {[%clk 0:00:51]} 38. Ne3 {[%clk 0:00:12]}  a4 {[%clk 0:00:49]} 39. Ke1 {[%clk 0:00:11]}  a3 {[%clk 0:00:48]} 40. Nxc4 {[%clk 0:00:12]}  Rxe2+ {[%clk 0:00:45]} 41. Kxe2 {[%clk 0:00:12]}  Bxc4+ {[%clk 0:00:45]} 42. Kd2 {[%clk 0:00:00]}  a2 {[%clk 0:00:45]} 0-1

[Event "December 19 Late 2023"]
[Site "https://www.chess.com"]
[Date "2023.12.19"]
[Round "3"]
[White "Gulamirian, Korun"]
[Black "Antonio, Jorge Carlos"]
[Result "0-1"]
[Board "177"]
[TimeControl "180+1"]
[WhiteFideId "4144899"]
[BlackFideId "113190"]
[WhiteElo "1621"]
[BlackElo "2247"]
[WhiteTeam "RUS"]
[BlackTeam "ARG"]
[WhiteClock "0:00:00"]
[BlackClock "0:00:37"]

1. e4 {[%clk 0:02:57]}  e5 {[%clk 0:03:00]} 2. Nf3 {[%clk 0:02:56]}  Nc6 {[%clk 0:03:01]} 3. Bc4 {[%clk 0:02:55]}  f5 {[%clk 0:02:58]} 4. d3 {[%clk 0:02:42]}  Nf6 {[%clk 0:02:58]} 5. Bg5 {[%clk 0:02:40]}  h6 {[%clk 0:02:57]} 6. Bxf6 {[%clk 0:02:37]}  Qxf6 {[%clk 0:02:57]} 7. Nc3 {[%clk 0:02:36]}  Bb4 {[%clk 0:02:52]} 8. O-O {[%clk 0:02:34]}  f4 {[%clk 0:02:52]} 9. Nd5 {[%clk 0:02:33]}  Qd6 {[%clk 0:02:32]} 10. a3 {[%clk 0:02:26]}  Bc5 {[%clk 0:02:31]} 11. b4 {[%clk 0:02:25]}  Bb6 {[%clk 0:02:21]} 12. c3 {[%clk 0:02:19]}  Ne7 {[%clk 0:02:18]} 13. Nxb6 {[%clk 0:02:12]}  axb6 {[%clk 0:02:16]} 14. d4 {[%clk 0:01:55]}  Ng6 {[%clk 0:02:12]} 15. dxe5 {[%clk 0:01:47]}  Nxe5 {[%clk 0:02:08]} 16. Nxe5 {[%clk 0:01:32]}  Qxe5 {[%clk 0:02:02]} 17. Qd4 {[%clk 0:01:24]}  d6 {[%clk 0:02:01]} 18. f3 {[%clk 0:01:09]}  Ke7 {[%clk 0:01:52]} 19. Qd3 {[%clk 0:01:01]}  Be6 {[%clk 0:01:48]} 20. a4 {[%clk 0:00:59]}  g5 {[%clk 0:01:43]} 21. Bxe6 {[%clk 0:00:58]}  Qxe6 {[%clk 0:01:42]} 22. a5 {[%clk 0:00:58]}  bxa5 {[%clk 0:01:38]} 23. Rxa5 {[%clk 0:00:53]}  Rxa5 {[%clk 0:01:35]} 24. bxa5 {[%clk 0:00:53]}  Ra8 {[%clk 0:01:32]} 25. Qb5 {[%clk 0:00:51]}  Ra7 {[%clk 0:01:29]} 26. Ra1 {[%clk 0:00:46]}  Qe5 {[%clk 0:01:27]} 27. Qc4 {[%clk 0:00:42]}  Qc5+ {[%clk 0:01:26]} 28. Qxc5 {[%clk 0:00:41]}  dxc5 {[%clk 0:01:25]} 29. Kf2 {[%clk 0:00:36]}  Ra6 {[%clk 0:01:18]} 30. c4 {[%clk 0:00:35]}  Kd6 {[%clk 0:01:17]} 31. g3 {[%clk 0:00:29]}  Ke5 {[%clk 0:01:12]} 32. Rd1 {[%clk 0:00:24]}  c6 {[%clk 0:01:08]} 33. Rd7 {[%clk 0:00:22]}  Rxa5 {[%clk 0:01:05]} 34. gxf4+ {[%clk 0:00:22]}  gxf4 {[%clk 0:00:59]} 35. Rxb7 {[%clk 0:00:20]}  Ra2+ {[%clk 0:00:58]} 36. Kg1 {[%clk 0:00:18]}  Kd4 {[%clk 0:00:55]} 37. Rh7 {[%clk 0:00:17]}  Ke3 {[%clk 0:00:51]} 38. h4 {[%clk 0:00:16]}  Kxf3 {[%clk 0:00:50]} 39. Rxh6 {[%clk 0:00:16]}  Ke2 {[%clk 0:00:45]} 40. Rxc6 {[%clk 0:00:12]}  f3 {[%clk 0:00:45]} 41. Rf6 {[%clk 0:00:10]}  Ra1+ {[%clk 0:00:40]} 42. Kh2 {[%clk 0:00:09]}  f2 {[%clk 0:00:37]} 43. Kg3 {[%clk 0:00:02]}  f1=Q {[%clk 0:00:37]} 44. Rxf1 {[%clk 0:00:00]}  Rxf1 {[%clk 0:00:37]} 0-1

[Event "December 19 Late 2023"]
[Site "https://www.chess.com"]
[Date "2023.12.19"]
[Round "3"]
[White "Nielsen, Viktor Haarmark"]
[Black "Reinecke, Katharina"]
[Result "1-0"]
[Board "178"]
[TimeControl "180+1"]
[WhiteFideId "1444492"]
[BlackFideId "12929727"]
[WhiteElo "2315"]
[BlackElo "1761"]
[WhiteTeam "DEN"]
[BlackTeam "GER"]
[WhiteClock "0:02:12"]
[BlackClock "0:01:10"]

1. e4 {[%clk 0:03:00]}  c6 {[%clk 0:02:59]} 2. d4 {[%clk 0:03:00]}  d5 {[%clk 0:02:59]} 3. Nc3 {[%clk 0:03:01]}  b5 {[%clk 0:02:58]} 4. a3 {[%clk 0:03:00]}  dxe4 {[%clk 0:02:58]} 5. Nxe4 {[%clk 0:03:01]}  Bf5 {[%clk 0:02:58]} 6. Ng3 {[%clk 0:03:01]}  Bg6 {[%clk 0:02:58]} 7. h4 {[%clk 0:03:02]}  h6 {[%clk 0:02:58]} 8. Nf3 {[%clk 0:03:03]}  Nd7 {[%clk 0:02:55]} 9. h5 {[%clk 0:03:03]}  Bh7 {[%clk 0:02:55]} 10. Bd3 {[%clk 0:03:04]}  Bxd3 {[%clk 0:02:55]} 11. Qxd3 {[%clk 0:03:05]}  e6 {[%clk 0:02:53]} 12. Bd2 {[%clk 0:03:05]}  Ngf6 {[%clk 0:02:52]} 13. Ne4 {[%clk 0:03:05]}  Be7 {[%clk 0:02:42]} 14. O-O-O {[%clk 0:03:04]}  O-O {[%clk 0:02:40]} 15. g4 {[%clk 0:03:04]}  Nxe4 {[%clk 0:02:35]} 16. Qxe4 {[%clk 0:03:04]}  c5 {[%clk 0:02:28]} 17. g5 {[%clk 0:03:04]}  hxg5 {[%clk 0:02:20]} 18. h6 {[%clk 0:03:04]}  g6 {[%clk 0:02:08]} 19. h7+ {[%clk 0:02:40]}  Kh8 {[%clk 0:02:08]} 20. dxc5 {[%clk 0:02:31]}  Nxc5 {[%clk 0:01:44]} 21. Bc3+ {[%clk 0:02:30]}  Bf6 {[%clk 0:01:26]} 22. Rxd8 {[%clk 0:02:29]}  Nxe4 {[%clk 0:01:25]} 23. Rxa8 {[%clk 0:02:23]}  Rxa8 {[%clk 0:01:23]} 24. Nxg5 {[%clk 0:02:19]}  Rf8 {[%clk 0:01:14]} 25. Nxe4 {[%clk 0:02:14]}  Bxc3 {[%clk 0:01:14]} 26. Nxc3 {[%clk 0:02:14]}  f5 {[%clk 0:01:13]} 27. Nxb5 {[%clk 0:02:13]}  Rf7 {[%clk 0:01:13]} 28. Nd6 {[%clk 0:02:13]}  Rxh7 {[%clk 0:01:13]} 29. Rxh7+ {[%clk 0:02:12]}  Kxh7 {[%clk 0:01:13]} 30. c4 {[%clk 0:02:12]}  g5 {[%clk 0:01:10]} 31. c5 {[%clk 0:02:12]} 1-0